Cogmind - Beta 9.3 @@@ ROGUE MODE // 2020.01.07 @ 11:00:00 Player: alice_fexa Result: Destroyed by H-88 Terminator with KE Penetrator Performance ------------- Evolutions (9) 4500 Regions Visited (13) 2600 Robots Destroyed (292) 1460 Value Destroyed (13643) 13643 Prototype IDs (38) 760 Alien Tech Used (0) 0 Bonus (4988) 4988 TOTAL SCORE: 27951 Bonus ------- Triggered High Security 500 High Alert Combat Kills 4117 Follower Combat Kills 71 Aligned with FarCom 300 Cogmind --------- Core Integrity 0/1600 Matter 298/300 Energy 98/100 System Corruption 13% Temperature Cool (0) Movement Core (50) Location -1/Access Parts ------- > --- POWER (2) -------- (None) > --- PROPULSION (6) --- (None) > --- UTILITY (13) ----- (None) > --- WEAPON (4) ------- (None) > --- INVENTORY (4) ---- Compact HERF Cannon Enhanced Nova Cannon Heavy Proton Missile Launcher Peak State ------------ > --- POWER ------------ Particle Reactor Light Quantum Reactor > --- PROPULSION ------- Heavy Treads Biometal Heavy Treads Centrium Wheel Centrium Wheel > --- UTILITY ---------- Advanced Cooling System High-capacity Storage Unit High-capacity Storage Unit High-capacity Storage Unit Advanced Signal Interpreter Advanced Target Analyzer Advanced Armor Integrity Analyzer Advanced ECM Suite Centrium Light Armor Plating Advanced Thermal Shield Hacking Suite Ghost Barrier System Backup Module > --- WEAPON ----------- Nova Cannon AWS/Autocannon > --- INVENTORY -------- Light Particle Reactor Heavy Treads Improved Heavy Treads Advanced Heavy Siege Treads Centrium Wheel Advanced Heat Sink Improved Coolant Injector Matter Compressor Advanced Sensor Array Advanced Armor Integrity Analyzer Improved Utility Shielding Improved Utility Shielding Gamma Rifle Dispersion Rifle Dispersion Rifle Quantum Rifle Compact HERF Cannon Compact HERF Cannon Enhanced Nova Cannon Enhanced Nova Cannon KE Penetrator Railgun Hypervelocity Railgun Heavy Proton Missile Launcher Heavy Missile Launcher [Rating: 180] Favorites ----------- Power Micro Fission Core Engine Light Angular Momentum Engine Power Core Micro Fission Core Reactor Particle Reactor Propulsion Centrium Wheel Treads Heavy Treads Wheel Centrium Wheel Utility High-capacity Storage Unit Device Advanced Sensor Array Storage High-capacity Storage Unit Processor Improved Signal Interpreter Hackware Hacking Suite Protection Improved Medium Armor Plating Weapon High-powered Shotgun Energy Gun Heavy Particle Gun Energy Cannon Enhanced Nova Cannon Ballistic Gun High-powered Shotgun Ballistic Cannon AWS/Autocannon Launcher Heavy Proton Missile Launcher Slashing Weapon Chainsword Build | -11 -10 -10 -10 -9 -8 -7 -6 -5 -4 -3 -2 -2 -1 ------- Run | Scr Mat Min Exi Min Mat Fac Fac Fac Fac Res Res Tes Acc Slots Evolved 18 | . . . . . 4 2 2 2 2 2 2 . 2 Power 1 | . . . . . . . . 1 . . . . . Propulsion 4 | . . . . . 1 . 1 . 1 . 1 . . Utility 11 | . . . . . 3 1 1 1 1 1 1 . 2 Weapon 2 | . . . . . . 1 . . . 1 . . . Parts Attached 257 | 6 10 4 2 1 34 6 34 48 23 17 5 12 55 Power 38 | 1 2 . . . 1 2 5 7 4 5 . 4 7 Engine 10 | 1 2 . . . 1 1 4 1 . . . . . Core 12 | . . . . . . 1 1 6 4 . . . . Reactor 16 | . . . . . . . . . . 5 . 4 7 Propulsion 48 | 2 2 . . . 7 . 11 8 4 1 3 . 10 Treads 16 | 1 . . . . 3 . 2 1 . 1 1 . 7 Leg . | . . . . . . . . . . . . . . Wheel 32 | 1 2 . . . 4 . 9 7 4 . 2 . 3 Hover . | . . . . . . . . . . . . . . Flight . | . . . . . . . . . . . . . . Utility 68 | 1 4 1 1 . 13 2 7 9 7 6 1 1 15 Device 31 | . 2 1 . . 4 1 2 4 1 3 1 . 12 Storage 6 | 1 2 . 1 . . 1 . 1 . . . . . Processor 10 | . . . . . 3 . . 1 3 1 . . 2 Hackware 3 | . . . . . . . 1 . . . . 1 1 Protection 18 | . . . . . 6 . 4 3 3 2 . . . Artifact . | . . . . . . . . . . . . . . Weapon 103 | 2 2 3 1 1 13 2 11 24 8 5 1 7 23 Energy Gun 38 | 2 1 1 . . 8 1 5 6 5 1 . 3 5 Energy Cannon 15 | . . . . . . . . 3 1 2 1 2 6 Ballistic Gun 25 | . 1 2 1 . 3 . 2 9 2 2 . 1 2 Ballistic Cannon 2 | . . . . . . . 1 . . . . . 1 Launcher 18 | . . . . 1 2 . . 5 . . . 1 9 Special Weapon . | . . . . . . . . . . . . . . Impact Weapon . | . . . . . . . . . . . . . . Slashing Weapon 5 | . . . . . . 1 3 1 . . . . . Piercing Weapon . | . . . . . . . . . . . . . . Special Melee Weapon . | . . . . . . . . . . . . . . Unidentified Prototypes 9 | . . . . . 1 . . 1 . 2 . 4 1 Parts Lost 42 | . . . . . 1 . 3 4 4 4 . 1 25 Power 5 | . . . . . . . 1 . . 1 . . 3 Propulsion 11 | . . . . . . . 1 2 . 1 . . 7 Utility 15 | . . . . . . . . 2 2 1 . 1 9 Weapon 11 | . . . . . 1 . 1 . 2 1 . . 6 Highest Loss Streak 9 | . . . . . 1 . 2 2 2 2 . 1 9 Average Slot Usage (%) 93 | . 99 100 100 100 99 99 99 94 88 89 86 89 79 Engine 4 | . 14 14 14 14 9 4 5 5 . . . . . Core 1 | . . . . . . 1 . 4 10 . . . . Reactor 2 | . . . . . . . . . . 8 8 8 7 Treads 7 | . 14 14 14 14 9 7 5 5 5 4 7 8 7 Wheel 13 | . 14 14 14 14 18 15 19 12 10 14 8 8 7 Device 11 | . 11 14 7 . 10 15 12 10 11 9 13 8 11 Storage 14 | . 15 14 20 28 18 15 13 12 15 14 13 13 11 Processor 8 | . . . . . 3 7 6 9 9 14 13 13 14 Hackware 4 | . . . . . . . 6 5 5 4 4 6 9 Protection 4 | . . . . . 12 7 6 5 3 3 4 4 1 Energy Gun 5 | . 14 14 7 . 8 10 7 4 6 2 . 1 1 Energy Cannon 1 | . . . . . . . . . 3 5 4 4 2 Ballistic Gun 7 | . 13 14 20 14 8 7 6 8 4 5 8 7 . Naked Turns 59 | . . . . . . . . . . . . . 59 Heaviest Build 219 | 13 49 44 55 57 76 85 96 136 143 169 178 178 219 Greatest Support 225 | 20 16 10 10 10 26 22 44 70 70 70 48 32 225 Greatest Overweight (x) 13 | 1 4 4 5 5 3 3 4 13 7 3 5 9 12 Average Overweight (x) 3 | . 3 4 4 5 2 3 2 3 2 2 4 5 4 Largest Inventory Capacity 28 | 6 16 12 18 18 18 20 20 28 28 28 28 28 28 Average Capacity 22 | 5 12 12 14 18 18 18 20 22 28 28 28 28 26 Most Carried 28 | 4 12 12 18 18 18 18 20 28 28 28 28 28 28 Average Carried 21 | 1 11 11 14 18 17 17 19 21 27 27 27 27 24 Final Capacity 28 | 6 12 12 18 18 18 20 20 28 28 28 28 28 4 Final Carried 28 | 4 12 12 18 18 18 18 20 27 28 28 28 28 3 Class Distribution -------------------- 30% | Hauler-Mutant 16% | Mutant 13% | Scavenger-Mutant 13% | Hauler-Skirmisher 11% | Hacker-Mutant 4% | Hauler-Gunner 4% | Hacker-Gunner Dominant Class ---------------- Mutant | -10/Materials Scavenger-Mutant | -10/Mines Scavenger-Mutant | -10/Exiles Mutant | -9/Mines Scavenger-Mutant | -8/Materials Skirmisher | -7/Factory Hauler-Mutant | -6/Factory Hauler-Mutant | -5/Factory Hauler-Skirmisher | -4/Factory Hauler-Mutant | -3/Research Hauler-Mutant | -2/Research Hacker-Gunner | -2/Testing Hacker-Mutant | -1/Access Resources | -11 -10 -10 -10 -9 -8 -7 -6 -5 -4 -3 -2 -2 -1 ----------- Run | Scr Mat Min Exi Min Mat Fac Fac Fac Fac Res Res Tes Acc Matter Collected 5595 | 211 289 88 . 52 712 47 547 1379 548 210 65 314 1133 Remotely . | . . . . . . . . . . . . . . Salvage Created 13820 | . 508 95 . 75 935 83 1084 1924 1106 1760 126 945 5179 Parts 687 | . 37 6 . 2 61 3 56 120 51 70 6 47 228 Haulers Intercepted 6 | . 1 . . . 4 . . 1 . . . . . Recyclers Shooed 13 | . . . . . . . 1 4 1 3 . 1 3 Parts Field Recycled . | . . . . . . . . . . . . . . Retrieved Matter . | . . . . . . . . . . . . . . Parts Self-Destructed . | . . . . . . . . . . . . . . Prevented . | . . . . . . . . . . . . . . Kills | -11 -10 -10 -10 -9 -8 -7 -6 -5 -4 -3 -2 -2 -1 ------- Run | Scr Mat Min Exi Min Mat Fac Fac Fac Fac Res Res Tes Acc Combat Hostiles Destroyed 203 | . 8 2 . 2 21 . 13 36 15 22 1 10 73 Melee 2 | . . . . . . . 2 . . . . . . Guns 97 | . 8 2 . 1 14 . 11 21 7 18 1 4 10 Cannons 46 | . . . . . . . . 1 6 4 . 3 32 AOE 50 | . . . . 1 7 . . 14 2 . . 3 23 Classes Destroyed 17 | . 9 . . 1 1 . 2 . 2 . . . 2 Worker 20 | . 1 . . . 3 . 4 4 . 1 . . 7 Builder 23 | . 2 . . . 1 . 2 4 3 . . 3 8 Tunneler 4 | . 2 1 . . . . 1 . . . . . . Hauler 6 | . 1 . . . 4 . . 1 . . . . . Recycler 9 | . 1 . . . 1 1 2 2 . 1 . 1 . Mechanic 2 | . . . . . . . . . . . . . 2 Operator 5 | . 1 . . . 1 1 1 1 . . . . . Watcher 20 | . 2 . . . 3 . 1 3 2 2 1 1 5 Swarmer 45 | . 3 . . . 11 . 3 13 . 3 . . 12 Saboteur 1 | . . . . . . . . . 1 . . . . Grunt 67 | . 5 2 . 1 8 . 5 7 8 2 . . 29 Brawler 1 | . . . . . . . . . 1 . . . . Duelist 3 | . . . . 1 . . . . . . . . 2 Protector 1 | . . . . . . . . . . . . . 1 Sentry 16 | . . . . . 2 . . 3 2 5 1 . 3 Hunter 34 | . . . . . . . 3 3 . 10 . 7 11 Programmer 35 | . . . . . . . 2 10 3 2 . 3 15 Best Kill Streak 24 | . 4 2 . 2 4 1 4 10 9 5 1 8 24 Combat Bots Only 15 | . 4 2 . 2 4 . 3 6 5 5 1 5 15 Max Kills in Single Turn 4 | . 1 1 . 1 2 1 2 4 2 2 1 4 4 Gunslinging 1 | . . . . . 1 . . . . . . . . Exploded 4 | . . . . 1 2 . . 2 2 . . 2 4 Melee 1 | . . . . . . . 1 . . . . . . Uniques/NPCs Destroyed . | . . . . . . . . . . . . . . Combat | -11 -10 -10 -10 -9 -8 -7 -6 -5 -4 -3 -2 -2 -1 -------- Run | Scr Mat Min Exi Min Mat Fac Fac Fac Fac Res Res Tes Acc Damage Taken 16176 | . 321 118 . 52 616 . 1530 1849 911 1763 27 1299 7690 Core 2484 | . 118 40 . . 80 . 289 121 24 142 . 51 1619 Absorbed by Shields 166 | . . . . . . . . 5 . . 29 132 . Reduced by Siege Mode 555 | . . . . . . . . 55 17 78 . 74 331 Core Remaining (%) 84 | 100 . . . 36 85 100 66 87 97 89 . 96 . Volleys Fired 573 | . 56 12 . 2 81 4 41 110 46 62 6 26 127 Largest 4 | . 2 2 . 2 2 3 3 3 3 2 2 4 4 Hottest 303 | . 85 95 . 50 100 135 185 179 206 204 155 282 303 Shots Fired 1400 | . 112 24 . 4 152 10 103 258 110 214 16 97 300 Gun 1011 | . 112 24 . 2 144 10 94 241 69 151 10 62 92 Cannon 323 | . . . . . . . 9 6 41 63 6 29 169 Launcher 66 | . . . . 2 8 . . 11 . . . 6 39 Special . | . . . . . . . . . . . . . . Kinetic 688 | . 56 12 . 2 71 4 44 156 37 120 10 51 125 Thermal 567 | . 56 12 . . 73 6 59 70 73 54 6 37 121 Explosive 28 | . . . . 2 8 . . 11 . . . . 7 Electromagnetic 117 | . . . . . . . . 21 . 40 . 9 47 Robot Hit Streak 40 | . 12 6 . 3 10 3 10 18 40 39 7 21 21 Robot Miss Streak 12 | . 4 2 . . 6 2 12 6 3 3 3 3 5 Penetration Max 2 | . . . . . . . 1 1 1 2 . 1 1 Secondary Targets 4 | . 1 . . . 1 . . 2 . . . . . Max Gunslinging Chain 1 | . 1 . . . 1 . . 1 . . . . . Autonomous 205 | . . . . . . . . . . 112 7 9 77 Shots Hit Robots 968 | . 72 13 . 3 98 3 80 168 75 174 9 69 204 Core Hits 557 | . 25 4 . 4 50 2 49 88 40 69 6 33 187 Critical Hits 70 | . 1 . . . 1 . 5 13 17 8 . 3 22 Critical Kills 29 | . . . . . 1 . 1 5 4 5 . 2 11 Critical Parts Destroyed 39 | . 1 . . . . . 4 8 11 3 . 1 11 Melee Attacks 35 | . . . . . . 12 21 2 . . . . . Impact . | . . . . . . . . . . . . . . Slashing 35 | . . . . . . 12 21 2 . . . . . Piercing . | . . . . . . . . . . . . . . Sneak Attacks 6 | . . . . . . . 6 . . . . . . Combat Hostiles . | . . . . . . . . . . . . . . Follow-up Attacks . | . . . . . . . . . . . . . . Damage Inflicted 40633 | . 948 166 . 90 2502 72 2549 5478 2719 5233 225 2966 17685 Guns 15416 | . 948 166 . 20 1758 72 1528 3474 907 3731 181 1166 1465 Cannons 11652 | . . . . . . . 136 37 1092 1502 44 887 7954 Explosions 12647 | . . . . 70 741 . 74 1967 720 . . 913 8162 Melee 811 | . . . . . . . 811 . . . . . . Ramming 107 | . . . . . 3 . . . . . . . 104 Kinetic 14948 | . 360 55 . 20 716 34 641 2050 192 3355 181 894 6450 Thermal 13767 | . 588 111 . . 1042 38 1023 1858 1807 1119 44 1132 5005 Explosive 5838 | . . . . 70 741 . 74 1410 720 . . 469 2354 Electromagnetic 5162 | . . . . . . . . 160 . 759 . 471 3772 Impact . | . . . . . . . . . . . . . . Slashing 811 | . . . . . . . 811 . . . . . . Piercing . | . . . . . . . . . . . . . . Highest Corruption 16 | . . . . . 2 . 1 5 1 2 . 3 16 Average Corruption 3 | . . . . . 2 . 1 2 1 1 . 2 8 Corruption Purged 9 | . . . . . . . . 2 1 . . . 6 Effects 119 | . . . . . 18 . 1 23 1 4 . 4 68 Message Errors 24 | . . . . . 9 . . 3 1 3 . 1 7 Matter Fused 12 | . . . . . . . . 4 . . . 1 7 Heat Flow Errors 12 | . . . . . 3 . . 2 . . . 1 6 Energy Discharges 9 | . . . . . . . 1 3 . . . . 5 Parts Rejected 2 | . . . . . . . . . . . . . 2 Data Loss (minor) 9 | . . . . . 3 . . 2 . . . 1 3 Data Loss (major) 1 | . . . . . . . . . . . . . 1 Misfires 2 | . . . . . . . . . . . . . 2 Alerts 3 | . . . . . . . . . . . . . 3 Misdirections 9 | . . . . . . . . . . . . . 9 Targeting Errors 35 | . . . . . 3 . . 9 . 1 . . 22 Weapon Failures 1 | . . . . . . . . . . . . . 1 Overload Shots . | . . . . . . . . . . . . . . Overflow Damage 2075 | . . . . . 25 . 170 162 141 28 . . 1549 Projectiles 882 | . . . . . . . . . 37 28 . . 817 Explosions 1001 | . . . . . 25 . . 162 104 . . . 710 Melee 192 | . . . . . . . 170 . . . . . 22 Knockbacks 24 | . . . . . . . 4 . . . . . 20 Impact 1 | . . . . . . . . . . . . . 1 Kinetic 22 | . . . . . . . 3 . . . . . 19 Secondary 1 | . . . . . . . 1 . . . . . . Self-Inflicted Damage 281 | . . . . 20 21 . . 1 53 . . . 186 Shots 10 | . . . . 1 1 . . 1 1 . . . 6 Rammed 10 | . . . . . 1 . . . . . . . 9 Targets Rammed 10 | . . . . . 1 . . . . . . . 9 Kicked . | . . . . . . . . . . . . . . Crushed . | . . . . . . . . . . . . . . Highest Temperature 384 | . 132 52 . 16 359 18 193 310 172 210 . 342 384 Average Temperature 74 | . 41 20 . 9 56 10 45 64 56 38 . 108 118 Received Heat Transfer 1702 | . 141 45 . 18 234 . 243 123 183 45 4 45 621 Effects 7 | . . . . . . . . 3 . . . 1 3 Energy Bleed 2 | . . . . . . . . . . . . 1 1 Interference 5 | . . . . . . . . 3 . . . . 2 Siege Activations 39 | . . . . . . . . 6 7 9 . 3 14 Total Turns 655 | . . . . . . . . 150 115 136 . 70 184 Longest Duration 52 | . . . . . . . . 46 32 52 . 37 24 Robots Corrupted 9 | . . . . . . . . . . . . . 9 Combat Hostiles 8 | . . . . . . . . . . . . . 8 Parts Fried 29 | . . . . . . . . . . 6 . 4 19 Impact Corruptions 1 | . . . . . . . . . . . . . 1 Robots Melted . | . . . . . . . . . . . . . . Combat Hostiles . | . . . . . . . . . . . . . . Parts Melted 20 | . . . . . 1 . 6 3 2 . . 1 7 Heat Transferred 15804 | . 1554 259 . . 1850 74 2115 2127 1812 785 37 1049 4142 Parts Sabotaged 7 | . . . . . . . . . . . . 3 4 Parts Stolen . | . . . . . . . . . . . . . . Parts Stripped . | . . . . . . . . . . . . . . Power Chain Reactions 18 | . . . . . . . . . . . . 2 16 Missiles Intercepted . | . . . . . . . . . . . . . . Alert | -11 -10 -10 -10 -9 -8 -7 -6 -5 -4 -3 -2 -2 -1 ------- Run | Scr Mat Min Exi Min Mat Fac Fac Fac Fac Res Res Tes Acc Peak Influence 2120 | . 162 154 . 65 327 152 243 926 813 701 368 628 2120 Average Influence 377 | . 41 33 . 61 184 77 109 280 643 451 307 429 1028 Maximum Alert Level 5 | . . . . . 1 . 1 3 3 3 1 2 5 Low Security (%) 42 | 100 100 100 . 100 52 100 85 43 . . 26 15 . Level 1 20 | . . . . . 47 . 14 27 . 34 73 12 9 Level 2 22 | . . . . . . . . 25 69 64 . 72 22 Level 3 6 | . . . . . . . . 3 30 . . . 24 Level 4 4 | . . . . . . . . . . . . . 28 Level 5 . | . . . . . . . . . . . . . 1 High Security 2 | . . . . . . . . . . . . . 13 Max Security . | . . . . . . . . . . . . . . Squads Dispatched 61 | . 1 1 . . 3 1 7 6 4 9 1 3 25 Investigation 5 | . . . . . 1 . 2 . 1 1 . . . Extermination 16 | . . . . . . 1 2 4 1 2 1 1 4 Reinforcement 16 | . 1 . . . 2 . 3 1 1 3 . 1 4 Assault 18 | . . 1 . . . . . 1 1 . . 1 14 Garrison 6 | . . . . . . . . . . 3 . . 3 Intercept . | . . . . . . . . . . . . . . Construction Impeded 7 | . . . . . . . 1 1 . 3 . . 2 Haulers Reinforced . | . . . . . . . . . . . . . . Stealth | -11 -10 -10 -10 -9 -8 -7 -6 -5 -4 -3 -2 -2 -1 --------- Run | Scr Mat Min Exi Min Mat Fac Fac Fac Fac Res Res Tes Acc Distress Signals 12 | . . . . . 2 . . 6 . 4 . . . Communications Jammed . | . . . . . . . . . . . . . . Distress Signals . | . . . . . . . . . . . . . . Times Spotted 358 | . 16 9 . 2 33 1 23 50 17 36 3 19 149 Peak Tracking Total 25 | . 4 5 . 2 5 1 4 6 7 4 2 5 25 Tactical Retreats 26 | . 1 . . . 4 . 2 3 . 7 . . 9 Traps | -11 -10 -10 -10 -9 -8 -7 -6 -5 -4 -3 -2 -2 -1 ------- Run | Scr Mat Min Exi Min Mat Fac Fac Fac Fac Res Res Tes Acc Traps Triggered 12 | . . . . . 2 . 4 1 2 1 . 1 1 Indirectly . | . . . . . . . . . . . . . . Trap Hack Attempts . | . . . . . . . . . . . . . . Triggered . | . . . . . . . . . . . . . . Disarmed . | . . . . . . . . . . . . . . Reprogrammed . | . . . . . . . . . . . . . . Reused . | . . . . . . . . . . . . . . Traps Extracted . | . . . . . . . . . . . . . . Installed . | . . . . . . . . . . . . . . Triggered 1 | . . . . . . . . . . . . . 1 Machines | -11 -10 -10 -10 -9 -8 -7 -6 -5 -4 -3 -2 -2 -1 ---------- Run | Scr Mat Min Exi Min Mat Fac Fac Fac Fac Res Res Tes Acc Machines Disabled 45 | . . . . 1 1 . 8 9 4 2 . 11 9 Max in Single Turn 5 | . . . . 1 1 . 2 5 2 1 . 3 3 Garrison Access 2 | . . . . . . . . . 1 . . 1 . Energy Cycler 1 | . . . . . . . . . . . . . 1 Machines Sabotaged . | . . . . . . . . . . . . . . Garrisons Compromised . | . . . . . . . . . . . . . . Overloaded Fab Kills . | . . . . . . . . . . . . . . Fab Network Shutdowns . | . . . . . . . . . . . . . . Hacking | -11 -10 -10 -10 -9 -8 -7 -6 -5 -4 -3 -2 -2 -1 --------- Run | Scr Mat Min Exi Min Mat Fac Fac Fac Fac Res Res Tes Acc Machines Accessed 45 | . 7 1 1 . 6 7 7 7 4 2 1 1 1 Terminals 33 | . 7 1 . . 4 4 4 6 3 2 1 . 1 Fabricators 3 | . . . . . . 2 1 . . . . . . Repair Stations 4 | . . . . . 1 1 1 1 . . . . . Recycling Units . | . . . . . . . . . . . . . . Scanalyzers 1 | . . . . . . . 1 . . . . . . Garrison Access 3 | . . . . . 1 . . . 1 . . 1 . Total Hacks 117 | . 19 3 1 . 16 21 16 16 12 7 2 1 3 Successful 65 | . 14 3 1 . 9 11 11 7 5 3 . 1 . Failed 52 | . 5 . . . 7 10 5 9 7 4 2 . 3 Catastrophic 12 | . 1 . . . 2 1 1 4 2 1 . . . Database Lockouts . | . . . . . . . . . . . . . . Manual 78 | . 19 3 1 . 10 11 4 12 10 7 . . 1 Terminals 94 | . 19 3 . . 14 12 9 14 11 7 2 . 3 Fabricators 9 | . . . . . . 7 2 . . . . . . Repair Stations 7 | . . . . . 1 2 2 2 . . . . . Recycling Units . | . . . . . . . . . . . . . . Scanalyzers 3 | . . . . . . . 3 . . . . . . Garrison Access 3 | . . . . . 1 . . . 1 . . 1 . Terminal Hacks 25 | . 6 1 1 . 5 4 3 1 2 2 . . . Part Schematic 1 | . . . . . . 1 . . . . . . . Prototype ID Bank 4 | . 2 . . . 2 . . . . . . . . Level Access Points 2 | . . . . . . 1 1 . . . . . . Terminal Index 1 | . . . . . . 1 . . . . . . . Fabricator Index 1 | . . . . . . . . . 1 . . . . Alert Level 2 | . . . . . . 1 1 . . . . . . Unreport Threat 6 | . 3 1 . . . . . 1 . 1 . . . Locate Traps 1 | . . . . . 1 . . . . . . . . Recall Extermination 2 | . . . . . . . . . 1 1 . . . Recall Reinforcements 1 | . . . . . 1 . . . . . . . . Zone Layout 3 | . 1 . . . 1 . 1 . . . . . . EX-Prototype ID Bank 1 | . . . 1 . . . . . . . . . . Fabricator Hacks 5 | . . . . . . 3 2 . . . . . . Load Schematic 3 | . . . . . . 2 1 . . . . . . Build 2 | . . . . . . 1 1 . . . . . . Repair Station Hacks 7 | . . . . . 1 2 2 2 . . . . . Scan Component 4 | . . . . . 1 1 1 1 . . . . . Repair 3 | . . . . . . 1 1 1 . . . . . Recycling Unit Hacks . | . . . . . . . . . . . . . . Scanalyzer 3 | . . . . . . . 3 . . . . . . Insert Component 1 | . . . . . . . 1 . . . . . . Analyze 2 | . . . . . . . 2 . . . . . . Garrison Access Hacks 2 | . . . . . . . . . 1 . . 1 . Seal Access 2 | . . . . . . . . . 1 . . 1 . Unauthorized Hacks 57 | . 16 4 . . 7 7 3 9 9 2 . . . Terminals 23 | . 8 2 . . 3 2 1 4 2 1 . . . Track 3 | . 1 1 . . 1 . . . . . . . . Botnet 20 | . 7 1 . . 2 2 1 4 2 1 . . . Fabricators . | . . . . . . . . . . . . . . Repair Stations . | . . . . . . . . . . . . . . Recycling Units . | . . . . . . . . . . . . . . Scanalyzers . | . . . . . . . . . . . . . . Garrison Access . | . . . . . . . . . . . . . . Data Cores Recovered 2 | . . . . . . 1 . 1 . . . . . Used 1 | . . . . . . 1 . . . . . . . Hacking Detections 37 | . 5 1 . . 6 6 6 6 3 2 1 . 1 Full Trace Events 2 | . . . . . . . 1 . 1 . . . . Feedback Events . | . . . . . . . . . . . . . . Feedback Blocked . | . . . . . . . . . . . . . . Robot Schematics Acquired . | . . . . . . . . . . . . . . Robots Built . | . . . . . . . . . . . . . . Matter . | . . . . . . . . . . . . . . Time . | . . . . . . . . . . . . . . Total Robot Build Rating . | . . . . . . . . . . . . . . Part Schematics Acquired 2 | . . . . . . 1 1 . . . . . . Parts Built 2 | . . . . . . 1 1 . . . . . . Matter 204 | . . . . . . 102 102 . . . . . . Time 76 | . . . . . . 51 25 . . . . . . Total Part Build Rating 2 | . . . . . . 1 1 . . . . . . Parts Repaired 3 | . . . . . . 1 1 1 . . . . . Time 98 | . . . . . . 16 38 44 . . . . . Parts Recycled . | . . . . . . . . . . . . . . Recycled Matter . | . . . . . . . . . . . . . . Retrieved Matter . | . . . . . . . . . . . . . . Retrieved Components . | . . . . . . . . . . . . . . Parts Scanalyzed 1 | . . . . . . . 1 . . . . . . Part Schematics Acquired 1 | . . . . . . . 1 . . . . . . Parts Damaged . | . . . . . . . . . . . . . . Bothacking | -11 -10 -10 -10 -9 -8 -7 -6 -5 -4 -3 -2 -2 -1 ------------ Run | Scr Mat Min Exi Min Mat Fac Fac Fac Fac Res Res Tes Acc Used RIF Installer . | . . . . . . . . . . . . . . Robots Hacked . | . . . . . . . . . . . . . . Non-combat . | . . . . . . . . . . . . . . Combat . | . . . . . . . . . . . . . . Robot Hacks Applied . | . . . . . . . . . . . . . . Relay Couplers Released 3 | . . . . . . . . . 3 . . . . Programmers 3 | . . . . . . . . . 3 . . . . Robots Rewired . | . . . . . . . . . . . . . . Allies Hacked . | . . . . . . . . . . . . . . Hacks Repelled . | . . . . . . . . . . . . . . Allies | -11 -10 -10 -10 -9 -8 -7 -6 -5 -4 -3 -2 -2 -1 -------- Run | Scr Mat Min Exi Min Mat Fac Fac Fac Fac Res Res Tes Acc Total Allies 5 | . . 5 . . . . . . . . . . . Largest Group 4 | . . 4 4 . . . . . . . . . . Highest-Rated Group 71 | . . 71 71 . . . . . . . . . . Highest-Rated Ally 31 | . . 31 31 . . . . . . . . . . Total Orders . | . . . . . . . . . . . . . . Ally Attacks 9 | . . 9 . . . . . . . . . . . Total Damage 168 | . . 168 . . . . . . . . . . . Kills 5 | . . 5 . . . . . . . . . . . Allies Corrupted . | . . . . . . . . . . . . . . Allies Melted . | . . . . . . . . . . . . . . Intel | -11 -10 -10 -10 -9 -8 -7 -6 -5 -4 -3 -2 -2 -1 ------- Run | Scr Mat Min Exi Min Mat Fac Fac Fac Fac Res Res Tes Acc Robot Analysis Total . | . . . . . . . . . . . . . . Derelict Logs Recovered 2 | . . 1 . 1 . . . . . . . . . Drone Launches . | . . . . . . . . . . . . . . Drone Recoveries . | . . . . . . . . . . . . . . Exploration | -11 -10 -10 -10 -9 -8 -7 -6 -5 -4 -3 -2 -2 -1 ------------- Run | Scr Mat Min Exi Min Mat Fac Fac Fac Fac Res Res Tes Acc Turns Passed 13614 | 60 940 445 339 60 1619 792 1604 2202 997 1393 564 518 2081 Spaces Moved 7978 | 51 605 320 268 41 1001 579 1000 1130 589 798 200 216 1180 Core 237 | 1 . . . . . . . . . . . . 236 Treads 136 | 5 . . . . . . 24 80 1 17 . . 9 Legs . | . . . . . . . . . . . . . . Wheels 7605 | 45 605 320 268 41 1001 579 976 1050 588 781 200 216 935 Hover . | . . . . . . . . . . . . . . Flight . | . . . . . . . . . . . . . . Fastest Speed 50 | 50 90 120 120 130 105 115 103 106 110 110 120 130 50 Average Speed 121 | 93 117 120 124 130 111 115 113 130 123 120 133 140 128 Slowest Speed 250 | 160 120 120 130 130 115 115 250 210 180 200 140 180 210 Overloaded Moves . | . . . . . . . . . . . . . . Propulsion Burnouts . | . . . . . . . . . . . . . . Robots Hopped . | . . . . . . . . . . . . . . Cave-ins Triggered . | . . . . . . . . . . . . . . Exploration Rate (%) 37 | 4 94 78 65 23 68 16 26 30 19 18 6 37 40 Regions Visited 13 Branch Regions 4 Pre-discovered Areas . | . . . . . . . . . . . . . . Known Exits Taken 8 | . . . . . 1 1 1 1 1 1 1 1 . Unknown Exits Taken 5 | 1 1 1 1 1 . . . . . . . . . Scrap Searched 2 | . . 2 . . . . . . . . . . . Spaces Dug 54 | . . . . . . 12 5 7 6 6 3 1 14 Terrain Destroyed 618 | . . . . 13 55 12 27 138 87 74 4 23 185 Melee 19 | . . . . . . 12 5 2 . . . . . Projectile 123 | . . . . . . . 3 8 12 45 4 7 44 AOE 476 | . . . . 13 55 . 19 128 75 29 . 16 141 Actions | -11 -10 -10 -10 -9 -8 -7 -6 -5 -4 -3 -2 -2 -1 --------- Run | Scr Mat Min Exi Min Mat Fac Fac Fac Fac Res Res Tes Acc Total 10871 | 60 723 361 272 43 1353 680 1359 1668 767 1129 491 373 1592 Wait 1695 | . 29 20 . . 198 70 211 315 82 226 272 106 166 Move 7965 | 50 604 319 267 40 1000 578 999 1129 588 797 199 215 1180 Hop . | . . . . . . . . . . . . . . Pick Up 122 | 4 12 1 3 . 13 5 11 20 12 12 3 4 22 Fast Attach 67 | 6 3 . . . 8 2 6 11 8 6 2 5 10 Attach 50 | . . . . . 4 3 3 5 4 6 2 3 20 Detach 8 | . . . . . . . . 1 . 2 1 1 3 Swap 140 | . 7 4 2 1 22 1 25 32 11 5 1 4 25 Drop 182 | . 12 5 . . 26 5 26 35 16 13 5 9 30 Fire 573 | . 56 12 . 2 81 4 41 110 46 62 6 26 127 Melee 35 | . . . . . . 12 21 2 . . . . . Ram 7 | . . . . . 1 . . . . . . . 6 Kick . | . . . . . . . . . . . . . . Crush 3 | . . . . . . . . . . . . . 3 Escape Stasis 24 | . . . . . . . 16 8 . . . . . Rewire . | . . . . . . . . . . . . . . Trap . | . . . . . . . . . . . . . . Miscellaneous . | . . . . . . . . . . . . . . Route ------- -11/Scrapyard -10/Materials (discovered 4 exits: [*Mat x3] / *Min) -10/Mines (discovered 3 exits: [*Mat x2] / *Exi) -10/Exiles -9/Mines -8/Materials (discovered 4 exits: *Fac x3 / Sto) -7/Factory (discovered 4 exits: *Fac x4) -6/Factory (discovered 4 exits: *Fac x4) -5/Factory (discovered 2 exits: *Fac / [*Upp]) -4/Factory (discovered 2 exits: *Res / *Upp) -3/Research -2/Research -2/Testing -1/Access History --------- Turn | Location | Event 14 | -11/Scrapyard | Discovered new exit (range 16) 61 | -11/Scrapyard | Entered Materials 307 | -10/Materials | Build established: Mutant 582 | -10/Materials | Discovered new exit (range 12) 690 | -10/Materials | Discovered new exit (range 5) 877 | -10/Materials | Discovered new exit (range 14) 964 | -10/Materials | Discovered new exit (range 16) 1001 | -10/Materials | Entered Mines 1006 | -10/Mines | Met a Derelict bent on vengeance 1074 | -10/Mines | Met a Derelict testing a Signal Generator 1119 | -10/Mines | Core integrity fell below 50% 1192 | -10/Mines | Received a Mining Laser from a helpful Derelict 1244 | -10/Mines | Discovered new exit (range 5) 1350 | -10/Mines | Discovered new exit (range 9) 1386 | -10/Mines | Assisted by bots powering up and referring to "LRC-V3" 1389 | -10/Mines | Learned Materials stockpile data 1424 | -10/Mines | Build established: Scavenger-Mutant 1428 | -10/Mines | Deemed a non-threat by the Exiles lab entrance 1429 | -10/Mines | Discovered new exit (range 5) 1446 | -10/Mines | Entered Exiles 1446 | -10/Exiles | Accompanied by 4 allies 1475 | -10/Exiles | Met 8R-AWN 1493 | -10/Exiles | Met EX-HEX 1569 | -10/Exiles | Met EX-BIN 1586 | -10/Exiles | Aligned with FarCom system 1587 | -10/Exiles | Given EX-Vault access code 1616 | -10/Exiles | Opened EX-Vault 1625 | -10/Exiles | Found AWS/Gauss 1630 | -10/Exiles | Found AWS/Autocannon 1659 | -10/Exiles | Warned to stay clear of 0b10 Research branches 1699 | -10/Exiles | Met EX-DEC 1775 | -10/Exiles | Discovered new exit (range 10) 1785 | -10/Exiles | Stole two prototypes: AWS/Gauss, AWS/Autocannon 1785 | -10/Exiles | Entered Mines 1838 | -9/Mines | Discovered new exit (range 6) 1845 | -9/Mines | Entered Materials 1845 | -8/Materials | Evolved 4 slots: Propulsion x1, Utility x3 1846 | -8/Materials | Identified exit to Storage 2151 | -8/Materials | Discovered new exit (range 15) 2694 | -8/Materials | Discovered new exit (range 15) 3415 | -8/Materials | Discovered new exit (range 9) 3463 | -8/Materials | Identified exit to Factory 3464 | -8/Materials | Entered Factory 3464 | -7/Factory | Evolved 2 slots: Utility x1, Weapon x1 3466 | -7/Factory | FarCom data flow suspended 3617 | -7/Factory | Repaired Imp. Ion Engine 3771 | -7/Factory | Build established: Skirmisher 3905 | -7/Factory | Identified exit to Factory 4135 | -7/Factory | Build established: Mutant 4174 | -7/Factory | Fabricated Hcp. Storage Unit (x1) 4256 | -7/Factory | Entered another Factory area 4256 | -6/Factory | Evolved 2 slots: Propulsion x1, Utility x1 4539 | -6/Factory | Fabricated Hcp. Storage Unit (x1) 4666 | -6/Factory | Repaired Adv. Treads 4784 | -6/Factory | Build established: Hauler-Mutant 5617 | -6/Factory | Identified exit to Factory 5860 | -6/Factory | Entered another Factory area 5860 | -5/Factory | Evolved 2 slots: Power x1, Utility x1 6182 | -5/Factory | Repaired Chainsword 7807 | -5/Factory | Build established: Hauler-Skirmisher 7960 | -5/Factory | First assault squad dispatched 8029 | -5/Factory | Discovered new exit (range 16) 8060 | -5/Factory | Identified exit to Factory 8062 | -5/Factory | Discovered new exit (range 15) 8062 | -5/Factory | Entered another Factory area 8062 | -4/Factory | Evolved 2 slots: Propulsion x1, Utility x1 8176 | -4/Factory | Discovered new exit (range 15) 8194 | -4/Factory | Identified exit to Upper Caves 8562 | -4/Factory | First assault squad dispatched 9037 | -4/Factory | Discovered new exit (range 9) 9058 | -4/Factory | Identified exit to Research 9059 | -4/Factory | Entered Research 9059 | -3/Research | Evolved 2 slots: Utility x1, Weapon x1 9109 | -3/Research | Garrison activated, responded to threat 9348 | -3/Research | Spotted B-86 Titan 9402 | -3/Research | Spotted B-86 Titan 9849 | -3/Research | Discovered new exit (range 15) 9866 | -3/Research | Identified exit to Research 10334 | -3/Research | Spotted B-86 Titan 10452 | -3/Research | Entered another Research area 10452 | -2/Research | Evolved 2 slots: Propulsion x1, Utility x1 10564 | -2/Research | Build established: Hauler-Mutant 10992 | -2/Research | Discovered new exit (range 12) 11009 | -2/Research | Identified exit to Testing 11016 | -2/Research | Entered Testing 11166 | -2/Testing | Found Prototype Hackware 11166 | -2/Testing | Identified Ghost Barrier 11282 | -2/Testing | Found Prototype Energy Gun 11282 | -2/Testing | Identified Warp Gun 11516 | -2/Testing | First assault squad dispatched 11517 | -2/Testing | Discovered new exit (range 8) 11531 | -2/Testing | Identified exit to Access 11534 | -2/Testing | Entered Access 11534 | -1/Access | Evolved 2 slots: Utility x2 11569 | -1/Access | Build established: Hacker-Gunner 11784 | -1/Access | First assault squad dispatched 11968 | -1/Access | Energy Cycler disabled 12106 | -1/Access | Destroyed 8 combat bots 12129 | -1/Access | Spotted B-99 Colossus 12419 | -1/Access | Build established: Hacker-Mutant 12736 | -1/Access | Destroyed 9 combat bots 12940 | -1/Access | System corruption reached 10% 13046 | -1/Access | Found Prototype Launcher 13089 | -1/Access | Identified Enh. Gamma Bomb Array 13286 | -1/Access | Garrison activated, responded to threat 13336 | -1/Access | High security lockdown imminent 13377 | -1/Access | Lost 5 parts (2n1u2w) 13383 | -1/Access | Destroyed 15 combat bots 13416 | -1/Access | High security lockdown engaged 13490 | -1/Access | Spotted B-99 Colossus 13535 | -1/Access | Lost 9 parts (1p2n4u2w) 13563 | -1/Access | Core integrity fell below 50% 13583 | -1/Access | Core integrity fell below 20% 13588 | -1/Access | Spotted B-99 Colossus 13615 | -1/Access | Destroyed by H-88 Terminator with KE Penetrator Last Messages --------------- 13556_ E-15 Imp destroyed. 13556_ K-01 Serf collects debris. 13557_ Slug penetrates Wall. 13561_ Penetrated by Slug. 13565_ Slammed into G-73 Enforcer. 13568_ Penetrated by Slug. 13568_ Slug penetrates Wall. 13569_ Slammed into H-88 Terminator. 13570_ Penetrated by Slug. 13570_ Slug penetrates Wall. 13571_ Penetrated by Slug. 13576_ System corrupted: Heat flow error (+257). 13578_ Penetrated by Slug. 13578_ Slug penetrates Wall. 13582_ C-30 ARC bursts open, deploying its payload. 13582_ G-73 Enforcer unfolds itself. 13588_ K-01 Serf collects debris. 13605_ System corrupted: Matter fused (-6). 13605_ Slammed into T-07 Excavator. 13615_ Penetrated by Slug. Map ----- +----------------------------------------------------+ | | | | | | | | | | | | | | | | | | | | | | | ?????????????????????????????????????????????????? | | ?????????????????????????????????????????????????? | | ?????????????????????????????????????????????????? | | ?????????????????????????????????????????????????? | | ?????????????????????????????????????????????????? | | ?????????????????????????????????????????????????? | | ?????????????????????????????????????????????????? | | ?????????????????????????????????????????????????? | | ?????????????????????????????????????????????????? | | ????????????????######?#######???????????????????? | | ????????????????# # #??????????##+#?????? | | ????????????????# # ############ #????## | | ????????????????# + #???? | | ????????????????# # ############ #??? | | ????????????????# # @ #??????????# #??? | | ????????????????# ?## ##??????????# #?? | | ????????????????######??# #??########## #?? | | ????????????????????????# #??# # #? "" | | ????????????????????????# #??# # #? "" | | ????????????????????????# t#??# " # # "T | | ????????????????????????# #??#| """ # # "" | | ????????????????????????# #??# """ / + "" | | ????????????????????????+ #??# " # # | | ????????????????????????# #??# # # | | ????????????????????????# #??# # #?##### | | ????????????????????????# #??# # ?????? | | ????????????????????????# #??#####/#### ????? | | ????????????????????? ??? ######## #??######???? | | ????????????????????? #???????????? | | ?????????????????????? ?? ######## #???????????? | | ???????????????????"""" ???#########+##??????????? | | ?????????????? """F""???# #??????????? | | ?????????????? """ "" ??# #??????????? | | ?????????????? ??# ##?????????? | | ????????????? ?# % +??????????? | | ????????????? ?# " #??????????? | | ????????????# # #??????????? | | ????????????# # "" #??????????? | | ????????????+ + "" #??????????? | +----------------------------------------------------+ Best States ------------- Heat Dissipation 102 Coolant Potential 80 Energy Generation 45 Energy Capacity 580 Matter Stores 300 Matter Capacity 300 Sight Range 20 Robot Scan Range 16 Terrain Scan Density 10 ECM Strength 3 Armor Coverage 900 Resistance: TH 30 Weapon Cycling 25 Evasion (%) 50 Targeting Accuracy 8 Target Analysis 8 Armor Integrity Analysis 66 Recoil Reduction 6 Stasis Canceling 2 Offensive Hacking 24 Defensive Hacking 20 Item Schematics ----------------- Hcp. Storage Unit | -7/Factory | Hacked Imp. Heavy Machine Gun | -6/Factory | Scanalyzed Robot Schematics ------------------ None Fabricated ------------ Hcp. Storage Unit | x1 | -7/Factory Hcp. Storage Unit | x1 | -6/Factory Alien Tech Used ----------------- None Achievements -------------- None Challenges ------------ None Game ------ Seed NovaTransdimensionalCycler Manual? 0 Play Time 01:49:12 Cumulative 625.0 hours Start 2020.01.07 @ 09:01:05 End 2020.01.07 @ 11:00:00 Sessions 1 Manual Loads 0 Difficulty Rogue Special Mode None Game No. 551 Rogue 511 Adventurer 40 Explorer 0 Win Type - Total 42 Types 28/0/12/2/0/0/0 Lore% 88 Gallery% 90 Achievement% 69 Wizard Run 0 Options --------- ASCII 0 Keyboard 0 Movement Numpad Keybinds 0 Fullscreen 0 Font 16/Terminus Map View 76x50 Tactical HUD 1 Map Filters NONE Filters NONE Steam 1 RUN: 9c8922a9-e1f0-474a-81fb-96adaa2c0747